Cogmind - Beta 16 @@@ ROGUE MODE // 2025.10.28 @ 22:55:48 Player: WOAH_a BUG Result: Destroyed by Autobeam Turret with Autobeam Performance ------------- Evolutions (0) 0 Regions Visited (2) 400 Robots Destroyed (23) 115 Value Destroyed (633) 633 Prototype IDs (0) 0 Alien Tech Used (0) 0 Bonus (-149) -149 TOTAL SCORE: 999 Bonus ------- Friendly Fire -149 Cogmind --------- Core Integrity 0/250 Matter 220/300 Energy 247/250 System Corruption 0% Temperature Cool (18) Movement Rolling (110) Location -10/Subcaves Parts ------- > --- POWER (1) -------- Ion Engine > --- PROPULSION (2) --- Subdweller Monowheel > --- UTILITY (2) ------ Small Storage Unit > --- WEAPON (2) ------- Battle Cannon > --- INVENTORY (8) ---- Aluminum Leg ECM Suite Scrap Shield Grenade Launcher Datajack Peak State ------------ > --- POWER ------------ Ion Engine > --- PROPULSION ------- Subdweller Monowheel Subdweller Monowheel > --- UTILITY ---------- Heat Sink Small Storage Unit > --- WEAPON ----------- EM Pulse Gun Battle Cannon > --- INVENTORY -------- Aluminum Leg ECM Suite Scrap Shield Grenade Launcher Datajack Flamer [Rating: 11] Favorites ----------- Power Ion Engine Engine Ion Engine Propulsion Subdweller Monowheel Treads Light Treads Wheel Subdweller Monowheel Utility Small Storage Unit Device Heat Sink Storage Small Storage Unit Weapon EM Pulse Gun Energy Gun EM Pulse Gun Ballistic Gun Assault Rifle Ballistic Cannon Battle Cannon Launcher Grenade Launcher Special Weapon Flamer Build | -11 -10 -10 ------- Run | Yrd Mat Sub Slots Evolved . | . . . Power . | . . . Propulsion . | . . . Utility . | . . . Weapon . | . . . Parts Attached 17 | 6 2 9 Power 3 | 1 . 2 Engine 3 | 1 . 2 Core . | . . . Reactor . | . . . Propulsion 5 | 2 . 3 Treads 2 | 2 . . Leg . | . . . Wheel 3 | . . 3 Hover . | . . . Flight . | . . . Utility 3 | 1 1 1 Device 2 | . 1 1 Storage 1 | 1 . . Processor . | . . . Hackware . | . . . Protection . | . . . Artifact . | . . . Weapon 6 | 2 1 3 Energy Gun 2 | 1 . 1 Energy Cannon . | . . . Ballistic Gun 1 | 1 . . Ballistic Cannon 1 | . . 1 Launcher 1 | . 1 . Special Weapon 1 | . . 1 Impact Weapon . | . . . Slashing Weapon . | . . . Piercing Weapon . | . . . Special Melee Weapon . | . . . Unidentified Prototypes . | . . . Parts Lost 5 | . . 5 Power 1 | . . 1 Propulsion . | . . . Utility 1 | . . 1 Weapon 3 | . . 3 Highest Loss Streak 2 | . . 2 To Critical Strikes . | . . . Average Backups 4 | 2 4 5 Power . | . 1 . Propulsion 1 | 1 1 1 Utility 1 | . . 1 Weapon 1 | . 1 1 Tool/Special . | . . . Unused Backups 4 | . 1 3 Power 1 | . 1 . Propulsion 1 | . . 1 Utility 1 | . . 1 Weapon . | . . . Tool/Special 1 | . . 1 Average Slot Usage (%) 90 | . 85 92 Engine 13 | . 14 13 Treads 9 | . 28 3 Wheel 14 | . . 19 Device 10 | . . 13 Storage 14 | . 14 14 Energy Gun 9 | . 12 8 Ballistic Gun 5 | . 14 2 Ballistic Cannon 6 | . . 8 Launcher 3 | . 1 4 Special Weapon 2 | . . 2 Peak Build Rating 11 | 6 7 11 Average Rating 8 | 3 6 8 On Entrance 4 | . 6 7 Avg Prop Armor Cover (%) . | . . . Naked Turns . | . . . Heaviest Build 16 | 14 15 16 Greatest Support 40 | 40 40 40 Greatest Overweight (x) . | . . . Average Overweight (x) . | . . . Largest Inventory Capacity 8 | 8 8 8 Average Capacity 7 | 6 8 8 Most Carried 8 | 5 7 8 Average Carried 5 | 2 4 6 Final Capacity 8 | 8 8 8 Final Carried 6 | 3 6 6 Class Distribution -------------------- 95% | Mutant 4% | Scavenger-Mutant Dominant Class ---------------- Mutant | -10/Materials Mutant | -10/Subcaves Resources | -11 -10 -10 ----------- Run | Yrd Mat Sub Matter Collected 576 | 252 114 210 Remotely . | . . . Salvage Created 584 | . 351 233 Parts 47 | . 21 26 Haulers Intercepted 1 | . 1 . Recyclers Shooed . | . . . Parts Field Recycled . | . . . Retrieved Matter . | . . . Parts Self-Destructed 21 | . . 21 Prevented 1 | . . 1 Parts Restored . | . . . Kills | -11 -10 -10 ------- Run | Yrd Mat Sub Combat Hostiles Destroyed 19 | . 7 12 Guns 8 | . 5 3 Cannons 3 | . . 3 AOE 8 | . 2 6 Classes Destroyed 7 | . 4 3 Worker 1 | . 1 . Hauler 1 | . 1 . Operator 1 | . 1 . Swarmer 5 | . . 5 Grunt 7 | . 7 . Subdweller 7 | . . 7 Guerrilla 1 | . . 1 Best Kill Streak 5 | . 4 5 Combat Bots Only 5 | . 3 5 Max Kills in Single Turn 3 | . 3 3 Gunslinging . | . . . Exploded 3 | . 1 3 Melee . | . . . Uniques/NPCs Destroyed . | . . . Combat | -11 -10 -10 -------- Run | Yrd Mat Sub Hostile Shots Fired 76 | . 22 54 Missed 17 | . 4 13 Hits 59 | . 18 41 Projectile 59 | . 18 41 Critical Strikes 2 | . . 2 Damage Taken 1027 | . 221 806 Core 254 | . 23 231 Absorbed by Shields . | . . . Core Remaining (%) 100 | 100 . . Volleys Fired 44 | . 20 24 Largest 2 | . 2 2 Hottest 73 | . 60 73 Shots Fired 74 | . 38 36 Gun 47 | . 35 12 Cannon 16 | . . 16 Launcher 11 | . 3 8 Special . | . . . Kinetic 43 | . 20 23 Thermal . | . . . Explosive 11 | . 3 8 Electromagnetic 20 | . 15 5 Robot Hit Streak 7 | . 7 7 Robot Miss Streak 4 | . 3 4 Penetration Max . | . . . Secondary Targets . | . . . Shots Hit Robots 41 | . 22 19 Core Hits 39 | . 20 19 Critical Kills . | . . . Critical Parts Destroyed . | . . . Critical Strikes . | . . . Melee Attacks . | . . . Impact . | . . . Slashing . | . . . Piercing . | . . . Sneak Attacks . | . . . Combat Hostiles . | . . . Follow-up Attacks . | . . . Damage Inflicted 1600 | . 500 1100 Guns 374 | . 269 105 Cannons 201 | . . 201 Explosions 1025 | . 231 794 Melee . | . . . Ramming . | . . . Kinetic 441 | . 156 285 Thermal . | . . . Explosive 1025 | . 231 794 Electromagnetic 134 | . 113 21 Impact . | . . . Slashing . | . . . Piercing . | . . . Highest Corruption . | . . . Average Corruption . | . . . Corruption Purged . | . . . Corruption Blocked . | . . . Overload Shots . | . . . Overflow Damage 4 | . . 4 Projectiles 4 | . . 4 Explosions . | . . . Melee . | . . . Knockbacks 4 | . . 4 Impact . | . . . Kinetic 4 | . . 4 Secondary . | . . . Self-Inflicted Damage 71 | . 11 60 Shots 4 | . 2 2 Rammed . | . . . Targets Rammed . | . . . Kicked . | . . . Crushed . | . . . Highest Temperature 317 | . 48 317 Average Temperature 59 | . 19 176 Received Heat Transfer 896 | . 120 776 Siege Activations . | . . . Martial Activations . | . . . Shielding Activations . | . . . Robots Disrupted . | . . . Combat Hostiles . | . . . Robots Corrupted . | . . . Combat Hostiles . | . . . Parts Fried . | . . . Impact Corruptions . | . . . Robots Melted . | . . . Combat Hostiles . | . . . Parts Melted . | . . . Heat Transferred . | . . . Parts Sabotaged . | . . . Parts Stolen . | . . . Parts Stripped . | . . . Power Chain Reactions . | . . . Alert | -11 -10 -10 ------- Run | Yrd Mat Sub Maximum Alert Level . | . . . Low Security (%) 100 | 100 100 . Level 1 . | . . . Level 2 . | . . . Level 3 . | . . . Level 4 . | . . . Level 5 . | . . . High Security . | . . . Max Security . | . . . Peak Influence 159 | . 159 . Initial . | . . . Average 55 | . 66 . Influence Increases 452 | . 267 185 Destroy 0b10 Robot/C 240 | . 140 100 Destroy 0b10 Robot/NC 15 | . 15 . Destroy Leader 52 | . 42 10 Disable Machine 30 | . 30 . Destroy Structure 10 | . 10 . Lose Combat Pursuer 105 | . 30 75 Influence Decreases 359 | . 130 229 Entered New Map 66 | . . 66 Time Decay 283 | . 130 153 Lost Part 10 | . . 10 Squads Dispatched 2 | . 2 . Investigation 1 | . 1 . Extermination . | . . . Reinforcement 1 | . 1 . Assault . | . . . Garrison . | . . . Intercept . | . . . Searches Triggered . | . . . Construction Impeded . | . . . Haulers Reinforced . | . . . Active Scanning Responses . | . . . Cargo Convoy Interrupts . | . . . Stealth | -11 -10 -10 --------- Run | Yrd Mat Sub Distress Signals 1 | . 1 . Communications Jammed . | . . . Distress Signals . | . . . Times Spotted 33 | . 13 20 Peak Tracking Total 5 | . 4 5 Tactical Retreats 3 | . 1 2 Traps | -11 -10 -10 ------- Run | Yrd Mat Sub Traps Triggered 4 | . 1 3 Indirectly . | . . . Trap Hack Attempts . | . . . Triggered . | . . . Disarmed 6 | . 6 . Reprogrammed . | . . . Reused . | . . . Traps Extracted . | . . . Installed . | . . . Triggered . | . . . Machines | -11 -10 -10 ---------- Run | Yrd Mat Sub Machines Disabled 2 | . 2 . Max in Single Turn 2 | . 2 . Machines Repaired . | . . . Machines Dismantled . | . . . Machines Sabotaged . | . . . Overloaded Fab Kills . | . . . Hacking | -11 -10 -10 --------- Run | Yrd Mat Sub Machines Accessed 2 | . 1 1 Terminals 1 | . 1 . Fabricators . | . . . Repair Stations . | . . . Recycling Units . | . . . Scanalyzers . | . . . Garrison Access . | . . . Total Hacks 8 | . 3 5 Successful 7 | . 2 5 Failed 1 | . 1 . Catastrophic . | . . . Database Lockouts . | . . . Manual 3 | . 2 1 Terminals 3 | . 3 . Fabricators . | . . . Repair Stations . | . . . Recycling Units . | . . . Scanalyzers . | . . . Garrison Access . | . . . Terminal Hacks 7 | . 2 5 Record 5 | . . 5 Locate Traps 1 | . 1 . Disarm Traps 1 | . 1 . Fabricator Hacks . | . . . Repair Station Hacks . | . . . Recycling Unit Hacks . | . . . Scanalyzer . | . . . Garrison Access Hacks . | . . . Unauthorized Hacks . | . . . Terminals . | . . . Fabricators . | . . . Repair Stations . | . . . Recycling Units . | . . . Scanalyzers . | . . . Garrison Access . | . . . Data Cores Recovered . | . . . Used . | . . . Hacking Detections . | . . . Full Trace Events . | . . . Feedback Events . | . . . Feedback Blocked . | . . . Robot Schematics Acquired . | . . . Robots Built . | . . . Authchips . | . . . Time . | . . . Total Robot Build Rating . | . . . Part Schematics Acquired . | . . . Parts Built . | . . . Authchips . | . . . Time . | . . . Total Part Build Rating . | . . . Part Studies Acquired . | . . . Parts Repaired . | . . . Time . | . . . Parts Recycled . | . . . Recycled Matter . | . . . Retrieved Matter . | . . . Retrieved Components . | . . . Parts Scanalyzed . | . . . Part Schematics Acquired . | . . . Parts Damaged . | . . . Bothacking | -11 -10 -10 ------------ Run | Yrd Mat Sub Used RIF Installer . | . . . Robots Hacked . | . . . Non-combat . | . . . Combat . | . . . Robot Hacks Applied . | . . . Relay Couplers Released . | . . . Fabnet Peak Effective % . | . . . Robots Rewired . | . . . Allies Hacked . | . . . Hacks Repelled . | . . . Allies | -11 -10 -10 -------- Run | Yrd Mat Sub Total Allies . | . . . Largest Group . | . . . Highest-Rated Group . | . . . Highest-Rated Ally . | . . . Total Orders . | . . . Ally Attacks . | . . . Total Damage . | . . . Kills . | . . . Allies Corrupted . | . . . Allies Melted . | . . . Intel | -11 -10 -10 ------- Run | Yrd Mat Sub Active Infowar (turns) 2 | . . 2 ECM 2 | . . 2 Robot Analysis Total . | . . . Derelict Logs Recovered . | . . . Drone Launches . | . . . Drone Recoveries . | . . . Exploration | -11 -10 -10 ------------- Run | Yrd Mat Sub Turns Passed 1456 | 66 321 1069 Spaces Moved 1014 | 38 136 840 Core 8 | 8 . . Treads 219 | 30 136 53 Legs . | . . . Wheels 787 | . . 787 Hover . | . . . Flight . | . . . Fastest Speed 50 | 50 160 110 Average Speed 120 | 136 160 113 Slowest Speed 160 | 160 160 160 Overloaded Moves . | . . . Propulsion Burnouts . | . . . Robots Hopped . | . . . Potential Cave-ins . | . . . Cave-ins Triggered . | . . . Exploration Rate (%) 27 | 4 30 47 Regions Visited 2 Branch Regions 1 Pre-discovered Areas 1 | . . 1 Known Exits Taken . | . . . Unknown Exits Taken 2 | 1 1 . Scrap Searched . | . . . Spaces Dug . | . . . Terrain Destroyed 51 | . 8 43 Melee . | . . . Projectile 2 | . . 2 AOE 49 | . 8 41 Terrain Rammed . | . . . Walls Destroyed . | . . . Machines Disabled . | . . . Actions | -11 -10 -10 --------- Run | Yrd Mat Sub Total 1179 | 52 201 926 Wait 70 | . 37 33 Move 1012 | 37 135 840 Hop . | . . . Pick Up 23 | 9 5 9 Fast Attach . | . . . Attach 13 | 6 1 6 Detach . | . . . Swap 8 | . 2 6 Drop 9 | . 1 8 Fire 44 | . 20 24 Melee . | . . . Ram . | . . . Kick . | . . . Crush . | . . . Escape Stasis . | . . . Rewire . | . . . Trap . | . . . Miscellaneous . | . . . Route ------- -11/Scrapyard -10/Materials (discovered 2 exits: [*Mat] / *Sub) -10/Subcaves (discovered 3 exits: *Mat x2 / *Rec) History --------- Turn | Location | Event 15 | -11/Scrapyard | Discovered new exit (range 15) 67 | -11/Scrapyard | Entered Materials 299 | -10/Materials | Discovered new exit (range 15) 312 | -10/Materials | Build established: Mutant 366 | -10/Materials | Discovered new exit (range 15) 388 | -10/Materials | Entered Subcaves 389 | -10/Subcaves | Approached by a straggling Scientist 405 | -10/Subcaves | A swath of the cavern ceiling suddenly collapsed 466 | -10/Subcaves | Ambushed by swarm of Subdwellers 562 | -10/Subcaves | Core integrity fell below 50% 772 | -10/Subcaves | Learned location of Zion (-7) 772 | -10/Subcaves | Met a Zionite searching for "candidates" 787 | -10/Subcaves | Shifting Twisted Machinery released Battle Cannon 792 | -10/Subcaves | Shifting Twisted Machinery released Flamer 935 | -10/Subcaves | Visited Clippyterm 938 | -10/Subcaves | Identified exit to Materials 938 | -10/Subcaves | Identified exit to Recycling 938 | -10/Subcaves | Learned Factory fabricator intel 1431 | -10/Subcaves | Core integrity fell below 20% 1457 | -10/Subcaves | Destroyed by Autobeam Turret with Autobeam Last Messages --------------- Acquired 13 matter. Acquired 5 matter. Acquired 15 matter. Subatomizers dissect the Wheel. Heat Sink destroyed. S-10 Pest destroyed. Lgt. Assault Rifle fries itself beyond repair. EM Pulse Gun destroyed. S-10 Pest knocked back. Lgt. Ion Engine fries itself beyond repair. Destroyed Flight Unit. S-10 Pest knocked back. Destroyed Lgt. Ion Engine. S-10 Pest knocked back. S-10 Pest destroyed. Acquired 40 matter. Lgt. Assault Rifle fries itself beyond repair. C1-TEX(h) destroyed. [Achievement: Backstab] Autobeam Turret knocked back. Map ----- +----------------------------------------------------+ | ????????????????????????????????????????????????#? | | ?????????????????????????????????????????????????? | | ?????????????????????????????????????????????????? | | ?????????????????????????????????????????????????? | | ?????????????????????????????????????????????????? | | ?????????????????????????????????????????????????? | | ?????????????????????????????????????????????????? | | ?????????????????????????????????????????????????? | | ?????????????????????????????????????????????????? | | ?????????????????????????????????????????????????? | | ?????????????????????????????????????????????????? | | ?????????????????????????????????????????????????? | | ?????????????????????????????????????????????????? | | ??????????????????????????????"??"???????????????? | | ??????????????????????????????""?"???????????????? | | ?????????????????????????????? " ???????????????? | | ?????????????????????????????? "" ???????????????? | | ??????????????? ???##??##?????" " ???????????????? | | ??????????????? ##?"""""##???#&&[???????????????? | | ??????????????? ##""" ##??"!%#???????????????? | | ???????????????? " " ##?#&&#???????????????? | | ?????????????????? "" """ ##?&%##??????????????? | | ???????????????????# =" " "##!* ###????????????? | | ???????????????????# %""""" ## # #####????????? | | ???????????????????# =& " " ####?????? | | ???????????????????# &@""""" ##????? | | ???????????????????# %! #????? | | ???????????????????# %### ## ;## ###?????? | | ??????????????????# % % ### ## ## #???????? | | ?????????#####???# % # #????????? | | ?????##### ##??## ## #????????? | | ????## #???###; ;### ### #????????? | | ???## ##???" ?####??# #????????? | | ???# #### ???????## ##????????? | | ???#" # ????##### #?????????? | | ##" % ???## ## ####??????? | | "##" ##### ## "% ??## #??????? | | ??# #???## ##"" " t""?## #??????? | | ??## ????# #####>#%#?# ### #??????? | | ???## % ?????## #???##???## #??###??????? | | ????# ???##### ##?######## #???????????? | | ???# ???## ##?# #???????????? | | ??## ????# #?# ### ##???????????? | | ??# ????# #?##### ### #????????##### | | ??# #??## ##?????## ## #???????## | | ??#"""### ##??????# ######### | | ???#"" ######## ## ## | | ???## ## ##### | | ????#### ## #???## | | ?????## ### ##????#### #### | +----------------------------------------------------+ Best States ------------- Heat Dissipation 35 Energy Generation 15 Energy Capacity 250 Matter Stores 300 Matter Capacity 300 Sight Range 16 Terrain Scan Density 10 Evasion (%) 50 Recoil Reduction 2 Item Schematics ----------------- None Robot Schematics ------------------ None Fabricated ------------ Nothing Repaired ---------- Nothing Studied --------- None Alien Tech Used ----------------- None Achievements -------------- Backstab Ghost 'Em I Have A Map? Challenges ------------ None Game ------ Seed MatterExpertMagmablaster Manual? 0 Play Time 00:20:18 Cumulative 10.1 hours Start 2025.10.28 @ 22:29:16 End 2025.10.28 @ 22:55:48 Sessions 1 Manual Loads 0 Difficulty Rogue Special Mode None Game No. 18 Rogue 18 Adventurer 0 Explorer 0 Win Type - Total 0 Types 0/0/0/0/0/0/0/0/0/0 Lore% 3 Gallery% 11 Achievement% 7 Wizard Run 0 Options --------- Layout 1 ASCII 0 Keyboard 0 Movement Mouse Keybinds 0 Fullscreen 1 Font 24/Smallcaps Map View 50x35 Zoom Use 0% Tactical HUD 0 Map Filters NONE Filters NONE Steam 1 RUN: a8088aa6-37db-492c-9d5e-782d58203615